bitfinex-derivatives/quotes_ETHF0:USTF0_20250405
["timestamp","ask_amount","ask_price","bid_price","bid_amount"]
[1743834542537,2.12346,1812.2,1812.1,3.57066834]
[1743834544738,7.33412,1812.4,1812.3,0.66232]
[1743834545138,7.33412,1812.4,1812.3,1.41412]
[1743834545336,8.85272,1812.4,1812.3,1.41412]
[1743834546232,5.38872,1812.4,1812.3,1.41412]
[1743834546440,4.12632,1812.4,1812.3,1.41412]
[1743834548139,4.12632,1812.4,1812.3,2.83312]
[1743834552040,4.12632,1812.4,1812.3,2.1708]
[1743834552240,5.53062,1812.4,1812.3,2.83312]
[1743834556535,5.53062,1812.4,1812.3,3.59909329]
[1743834556734,5.53062,1812.4,1812.3,2.83312]
[1743834556936,2.06662,1812.4,1812.3,2.83312]
[1743834558245,2.06662,1812.4,1812.3,2.93692154]
[1743834559540,2.06662,1812.4,1812.3,2.93701005]
[1743834559747,2.06662,1812.4,1812.3,3.59933005]
[1743834561435,2.06662,1812.4,1812.3,3.59958141]
[1743834563347,2.06662,1812.4,1812.3,3.59985526]
[1743834566952,2.06662,1812.4,1812.3,3.5999999]
[1743834570756,2.06662,1812.4,1812.3,3.60017804]
[1743834572757,0.66232,1812.4,1812.3,3.60017804]
[1743834574657,2.19282,1812.4,1812.3,3.60017804]
[1743834574957,2.19282,1812.4,1812.3,3.60063828]
[1743834576457,2.19282,1812.4,1812.3,3.6008819]
[1743834578259,2.19282,1812.4,1812.3,3.60087583]
[1743834580154,2.19282,1812.4,1812.3,3.60087437]
[1743834580354,0.66232,1812.4,1812.3,3.60087437]
[1743834580958,2.10082,1812.4,1812.3,3.60087437]
[1743834582062,2.10082,1812.4,1812.3,3.60087911]
[1743834582361,0.66232,1812.4,1812.3,3.60087911]
[1743834583762,0.66232,1812.4,1812.3,3.60086118]
[1743834585761,0.66232,1812.4,1812.3,3.60086086]
[1743834587558,0.66232,1812.4,1812.3,3.6008601]
[1743834592260,2.19832,1812.4,1812.3,3.6008601]
[1743834593063,2.19832,1812.4,1812.3,3.60086697]
[1743834595070,2.19832,1812.4,1812.3,3.60085229]
[1743834598369,2.19832,1812.4,1812.3,2.93853229]
[1743834598675,2.19832,1812.4,1812.3,2.93852961]
[1743834598869,2.90692,1812.4,1812.3,2.93852961]
[1743834599674,2.90692,1812.4,1812.3,3.60084961]
[1743834603376,2.90692,1812.4,1812.3,2.93852961]
[1743834603578,2.90692,1812.4,1812.3,3.60084961]
[1743834603772,2.90692,1812.4,1812.3,2.93852961]
[1743834603973,2.90692,1812.4,1812.3,3.60084961]
[1743834604679,2.19832,1812.4,1812.3,3.60084961]
[1743834604882,2.93922,1812.4,1812.3,3.60084961]
[1743834605578,2.93922,1812.4,1812.3,3.60055848]
[1743834606771,2.93922,1812.4,1812.3,1.42975848]
[1743834607170,6.14702,1812.4,1812.3,0.76743848]
[1743834607574,0.66236,1812.2,1812.1,0.71426834]
[1743834607771,0.66236,1812.2,1812.1,1.48191003]
[1743834607971,1.36686,1812.2,1812.1,1.48191003]
[1743834608184,2.89046,1812.2,1812.1,1.48191003]
[1743834608485,2.89046,1812.2,1812.1,2.14431003]
[1743834609885,2.89046,1812.2,1812.1,2.83921325]
[1743834610383,2.89046,1812.2,1812.1,2.17681325]
[1743834610587,2.89046,1812.2,1812.1,4.30401325]
[1743834610984,2.89046,1812.2,1812.1,4.30328354]
[1743834611974,2.18596,1812.2,1812.1,4.30328354]
[1743834612884,2.18596,1812.2,1812.1,4.30306593]
[1743834613380,0.66236,1812.2,1812.1,4.30306593]
[1743834613686,0.6623,1812.5,1812.4,0.66225]
[1743834613885,0.6623,1812.5,1812.4,1.42850279]
[1743834614787,0.6623,1812.5,1812.4,3.58766338]
[1743834616685,0.6623,1812.5,1812.4,3.58767427]
[1743834617887,0.6623,1812.5,1812.4,2.82145322]
[1743834618388,0.6623,1812.5,1812.4,3.58763773]
[1743834618591,0.6623,1812.5,1812.4,2.82145322]
[1743834620199,0.6623,1812.5,1812.4,2.15920322]
[1743834620497,0.6623,1812.5,1812.4,2.82149322]
[1743834620697,0.6623,1812.5,1812.4,4.30749322]
[1743834620894,0.6623,1812.5,1812.4,3.64520322]
[1743834621294,0.6623,1812.5,1812.4,4.30749322]
[1743834622398,0.6623,1812.5,1812.4,5.07356199]
[1743834622900,0.6623,1812.5,1812.4,4.41127199]
[1743834623495,0.6623,1812.5,1812.4,3.64520322]
[1743834624398,0.6623,1812.5,1812.4,4.30749322]
[1743834624601,0.6623,1812.5,1812.4,3.64520322]
[1743834625099,0.6623,1812.5,1812.4,4.30749322]
[1743834627305,0.6623,1812.5,1812.4,3.64520322]
[1743834627604,0.6623,1812.5,1812.4,4.30749322]
[1743834628299,0.6623,1812.5,1812.4,3.64520322]
[1743834628504,0.6623,1812.5,1812.4,4.30749322]
[1743834629404,0.6623,1812.5,1812.4,3.64520322]
[1743834629604,2.0585,1812.5,1812.4,3.64520322]
[1743834629908,2.0585,1812.5,1812.4,4.30749322]
[1743834630098,2.0585,1812.5,1812.4,3.61259]
[1743834630292,2.0585,1812.5,1812.4,4.30621076]
[1743834643409,2.0585,1812.5,1812.4,5.07289669]
[1743834644514,2.0585,1812.5,1812.4,5.07290912]
[1743834646314,2.0585,1812.5,1812.4,5.07299741]
[1743834647016,2.0585,1812.5,1812.4,4.30621076]
[1743834647202,2.0585,1812.5,1812.4,5.07303361]
[1743834648407,2.0585,1812.5,1812.4,5.07299459]
[1743834652017,2.0585,1812.5,1812.4,5.07312814]
[1743834652218,2.0585,1812.5,1812.4,2.88472814]
[1743834653118,2.0585,1812.5,1812.4,2.22243814]
[1743834653315,2.0585,1812.5,1812.4,0.69362076]
[1743834653511,2.7613,1812.5,1812.4,0.69362076]
[1743834654919,2.7613,1812.5,1812.4,1.46065713]
[1743834655720,2.7613,1812.5,1812.4,2.12294713]
[1743834656019,2.7613,1812.5,1812.4,1.46065713]
[1743834656422,2.7613,1812.5,1812.4,0.69362076]
[1743834657619,2.7613,1812.5,1812.4,1.35591076]
[1743834658120,2.7613,1812.5,1812.4,0.69362076]
[1743834659824,2.7613,1812.5,1812.4,1.35591076]
[1743834660011,2.7613,1812.5,1812.4,2.12287177]
[1743834660215,2.7613,1812.5,1812.4,3.55767177]
[1743834661315,0.6623,1812.5,1812.4,3.55767177]
[1743834662718,0.6623,1812.5,1812.4,1.46058177]
[1743834663020,2.1294,1812.5,1812.4,0.69362076]
[1743834663220,2.8532,1812.5,1812.4,0.69362076]
[1743834664924,0.66232,1812.3,1812.2,3.57983]
[1743834665226,0.66232,1812.3,1812.2,5.04159871]
[1743834665525,0.66232,1812.3,1812.2,4.37926871]
[1743834665718,5.54142,1812.3,1812.2,1.46176871]
[1743834666121,5.54142,1812.3,1812.2,1.46184964]
[1743834667220,5.54142,1812.3,1812.2,0.69480104]
[1743834667412,5.54142,1812.3,1812.2,1.46154093]
[1743834667825,5.54142,1812.3,1812.2,0.69480104]
[1743834669820,5.54142,1812.3,1812.2,1.46131529]
[1743834670023,5.54142,1812.3,1812.2,2.86571529]
[1743834670326,5.54142,1812.3,1812.2,2.09920104]
[1743834672928,5.54142,1812.3,1812.2,2.85530104]
[1743834673122,3.2078,1812.6,1812.2,3.62150246]
[1743834673425,0.66228,1812.5,1812.4,0.66229]
[1743834673615,0.66228,1812.5,1812.4,2.84929142]
[1743834673818,0.66228,1812.5,1812.4,3.54409246]
[1743834674417,0.66228,1812.5,1812.4,2.88180246]
[1743834675025,2.18498,1812.5,1812.4,2.88180246]
[1743834675418,2.18498,1812.5,1812.4,2.88152186]
[1743834675827,2.18498,1812.5,1812.4,2.11560104]
[1743834679130,2.18498,1812.5,1812.4,0.69480104]
[1743834679331,2.18498,1812.5,1812.1,0.00826834]
[1743834679332,0.66236,1812.2,1812.1,0.00826834]
[1743834679526,6.6708,1812.2,1811.4,3.2078]
[1743834679730,0.66258,1811.6,1811.5,2.95500386]
[1743834680434,0.66258,1811.6,1811.5,2.1883]
[1743834682432,0.66258,1811.6,1811.5,2.85091]
[1743834683935,0.66258,1811.6,1811.5,2.1883]
[1743834687935,3.87038,1811.6,1811.5,2.1883]
[1743834688135,3.87038,1811.6,1811.5,0.7]
[1743834688836,5.33748,1811.6,1811.5,0.7]
[1743834689841,5.33748,1811.6,1811.5,1.36261]
[1743834690037,5.33748,1811.6,1811.5,2.85601]
[1743834690839,5.33748,1811.6,1811.5,3.60481]
[1743834691131,3.87038,1811.6,1811.5,2.9422]
[1743834691337,3.87038,1811.6,1811.5,3.60481]
[1743834692134,3.87038,1811.6,1811.5,2.9422]
[1743834692536,3.87038,1811.6,1811.5,3.60481]
[1743834692837,0.66258,1811.6,1811.5,3.60481]
[1743834694838,0.66258,1811.6,1811.5,2.9422]
[1743834695036,0.66258,1811.6,1811.5,3.60481]
[1743834696937,0.66258,1811.6,1811.5,2.9422]
[1743834697344,0.66258,1811.6,1811.5,3.60481]
[1743834697838,0.66258,1811.6,1811.5,2.9422]
[1743834699337,2.08268,1811.6,1811.5,2.9422]
[1743834699640,0.66261,1811.5,1811.4,0.00826834]
[1743834699832,3.54861,1811.5,1811.4,0.00826834]
[1743834700027,7.01261,1811.5,1811.4,0.00826834]
[1743834700334,0.66269,1811.3,1811.2,3.9556]
[1743834701032,2.08279,1811.3,1811.2,3.9556]
[1743834701532,2.08279,1811.3,1811.2,5.4434]
[1743834701731,2.08279,1811.3,1811.2,6.10612]
[1743834702240,2.08279,1811.3,1811.2,5.4434]
[1743834702731,2.08279,1811.3,1811.2,6.10612]
[1743834702932,2.08279,1811.3,1811.2,5.4434]
[1743834704939,2.08279,1811.3,1811.2,2.2356]
[1743834706034,2.08279,1811.3,1811.1,0.67102834]
[1743834706035,0.66272,1811.2,1811.1,0.00826834]
[1743834706240,2.06582,1811.2,1811.1,0.00826834]
[1743834706640,3.56252,1811.2,1811.1,0.00826834]
[1743834708043,2.06582,1811.2,1811.1,0.00826834]
[1743834708242,2.06582,1811.2,1811.1,1.41286834]
[1743834708437,5.53082,1811.2,1811.1,1.41286834]
[1743834708943,5.53082,1811.2,1811.1,0.00826834]
[1743834710842,0.66271,1811.3,1811.2,0.66269]
[1743834711147,0.66269,1811.3,1811.2,2.06729]
[1743834711847,0.66269,1811.3,1811.2,1.4046]
[1743834712048,0.66269,1811.3,1811.2,2.06732]
[1743834712357,0.66269,1811.3,1811.2,1.4046]
[1743834712542,2.10429,1811.3,1811.2,1.4046]
[1743834716846,0.66272,1811.2,1811.1,0.00826834]
[1743834717152,2.15562,1811.2,1811.1,1.45786834]
[1743834718447,2.15562,1811.2,1811.1,2.12062834]
[1743834718853,2.15562,1811.2,1811.1,1.45786834]
[1743834719148,3.10443,1811.3,1811.1,1.45786834]
[1743834719149,0.66272,1811.3,1811.1,1.45786834]
[1743834719352,3.2078,1811.4,1811.3,0.66269]
[1743834719744,3.2078,1811.4,1811.3,3.57019]
[1743834719944,3.87045,1811.4,1811.3,3.57019]
[1743834721657,3.87045,1811.4,1811.3,2.9075]
[1743834721855,5.29265,1811.4,1811.3,2.9075]
[1743834722046,5.29265,1811.4,1811.3,3.57019]
[1743834722653,5.29265,1811.4,1811.3,2.9075]
[1743834722844,5.29265,1811.4,1811.3,3.57019]
[1743834723046,2.08485,1811.4,1811.3,3.57019]
[1743834724449,2.08485,1811.4,1811.3,2.9075]
[1743834725155,0.66272,1811.2,1811.1,0.67099834]
[1743834725454,0.66272,1811.2,1811.1,4.37120919]
[1743834726056,1.4255,1811.3,1811.1,3.70847919]
[1743834726354,2.08822,1811.3,1811.2,0.66272]
[1743834727157,4.13064,1811.5,1811.4,0.66265]
[1743834727852,4.13064,1811.5,1811.4,2.13565]
[1743834729251,0.66264,1811.5,1811.4,2.13565]
[1743834737957,0.66264,1811.5,1811.4,3.64845]
[1743834740164,2.14804,1811.5,1811.4,3.64845]
[1743834742065,2.14804,1811.5,1811.4,4.4154356]
[1743834743167,0.66264,1811.5,1811.4,4.4154356]
[1743834744369,3.81733834,1811.7,1811.6,0.66258]
[1743834744370,0.00826834,1811.7,1811.6,0.66258]
[1743834744564,0.00826834,1811.7,1811.6,1.42951258]
[1743834744865,0.00826834,1811.7,1811.6,2.89151258]
[1743834745167,0.00826834,1811.7,1811.6,2.89148391]
[1743834745468,0.67080834,1811.7,1811.6,2.89148391]
[1743834745865,0.00826834,1811.7,1811.6,2.89148391]
[1743834746960,0.00826834,1811.7,1811.6,2.89097373]
[1743834748566,0.67080834,1811.7,1811.6,2.89097373]
[1743834748986,0.67080834,1811.7,1811.6,2.89068318]
[1743834749573,0.66268,1811.4,1811.3,3.2078]
[1743834749767,0.66265,1811.5,1811.4,0.66263]
[1743834750274,3.09035,1811.5,1811.2,1.4904]
[1743834750478,0.66269,1811.3,1811.2,2.15311]
[1743834750681,0.66269,1811.3,1811.2,2.91930069]
[1743834750882,0.66269,1811.3,1811.2,4.35440069]
[1743834751075,2.13729,1811.3,1811.2,4.35440069]
[1743834752373,2.13729,1811.3,1811.2,3.58821]
[1743834752871,3.2078,1811.4,1811.3,0.66269]
[1743834753078,4.14564,1811.5,1811.4,0.66265]
[1743834756382,0.66265,1811.4,1811.3,2.09777]
[1743834756680,4.14565,1811.5,1811.4,0.66265]
[1743834756879,5.54145,1811.5,1811.4,2.08425]
[1743834757890,5.54145,1811.5,1811.4,2.85061016]
[1743834757891,3.483,1811.5,1811.4,2.85061016]
[1743834758275,0.00826834,1811.7,1811.4,2.18796016]
[1743834758578,0.00826834,1811.7,1811.6,0.66258]
[1743834758782,0.67080834,1811.7,1811.6,1.428882]
[1743834758978,0.00826834,1811.7,1811.6,2.850482]
[1743834759583,0.00826834,1811.7,1811.6,3.37785056]
[1743834760081,0.00826834,1811.7,1811.6,3.82322126]
[1743834760280,0.00826834,1811.7,1811.6,2.85015267]
[1743834763083,0.00826834,1811.7,1811.6,6.05795267]
[1743834763587,2.05821,1812.1,1812.0,0.66243]
[1743834764880,2.05821,1812.1,1812.0,2.13963]
[1743834766986,0.00826834,1812.2,1812.1,0.6624]
[1743834767186,0.00826834,1812.2,1812.1,2.1827]
[1743834768091,0.67062834,1812.2,1812.1,2.1827]
[1743834768392,2.07442834,1812.2,1812.1,2.1827]
[1743834768589,2.07442834,1812.2,1812.1,0.6624]
[1743834768789,2.82432834,1812.2,1812.1,0.6624]
[1743834769104,0.66243,1812.1,1812.0,0.66241]
[1743834769287,0.66243,1812.0,1811.9,1.42804]
[1743834773498,0.66243,1812.0,1811.9,2.81514]
[1743834779290,2.09883,1812.1,1812.0,0.66243]
[1743834782196,0.66243,1812.0,1811.9,1.42804]
[1743834782404,2.80723,1812.0,1811.9,1.42804]
[1743834783706,0.66247,1811.9,1811.8,3.87027]
[1743834783903,2.77517,1811.9,1811.8,3.87027]
[1743834785097,2.77517,1811.9,1811.8,3.2078]
[1743834786097,2.77517,1811.9,1811.8,3.87031]
[1743834787302,2.77517,1811.9,1811.8,3.2078]
[1743834788101,2.77517,1811.9,1811.7,2.05871]
[1743834788102,0.66258,1811.7,1811.5,6.28677]
[1743834788302,0.66258,1811.7,1811.6,1.42894494]
[1743834788701,2.08168,1811.7,1811.6,1.42894494]
[1743834790717,2.08168,1811.7,1811.6,2.95104494]
[1743834790915,2.08168,1811.7,1811.6,2.95114297]
[1743834792409,2.08168,1811.7,1811.6,1.42904297]
[1743834792603,2.80888,1811.7,1811.6,1.42883942]
[1743834793910,2.80888,1811.7,1811.6,0.76628942]
[1743834794112,0.66265,1811.5,1811.4,0.66263]
[1743834794407,0.66265,1811.5,1811.4,1.42884442]
[1743834794608,0.66265,1811.5,1811.4,2.93387549]
[1743834795107,2.19375,1811.5,1811.4,2.93387549]
[1743834795304,2.19375,1811.5,1811.4,2.27124549]
[1743834795512,2.19375,1811.5,1811.4,2.93389549]
[1743834796105,2.19371,1811.5,1811.4,2.93389549]
[1743834796305,2.19371,1811.5,1811.4,2.933512]
[1743834796510,0.66261,1811.5,1811.4,2.933512]
[1743834797913,0.66261,1811.5,1811.4,2.9334345]
[1743834798414,0.66261,1811.5,1811.4,1.5052]
[1743834798619,0.66261,1811.5,1811.4,2.16785]
[1743834798914,2.17031,1811.6,1811.5,0.66261]
[1743834799216,2.17031,1811.6,1811.5,3.63441]
[1743834799517,0.66261,1811.6,1811.5,3.63441]
[1743834800913,3.497,1811.7,1811.6,0.66258]
[1743834801215,2.05943,1811.8,1811.7,0.66254]
[1743834801413,0.66253,1811.8,1811.7,0.66254]
[1743834804919,1.3969,1811.9,1811.8,0.66251]
[1743834805121,3.497,1812.1,1812.0,0.66243]
[1743834805423,2.12403,1812.1,1812.0,0.66243]
[1743834805619,5.62203,1812.1,1812.0,0.66243]
[1743834805922,2.12403,1812.1,1812.0,0.66243]
[1743834807517,0.66243,1812.0,1811.9,2.04663]
[1743834808225,0.66243,1812.0,1811.9,2.81247081]
[1743834808415,0.66243,1812.0,1811.9,2.81244975]
[1743834810611,0.66243,1812.0,1811.9,2.04663]
[1743834811325,0.66243,1812.0,1811.9,0.66243]
[1743834813418,0.66243,1812.0,1811.9,2.13613]
[1743834816516,2.07433,1812.0,1811.9,2.13613]
[1743834816825,2.07433,1812.0,1811.9,1.4737]
[1743834817427,0.66247,1811.9,1811.8,1.42958]
[1743834817623,0.66247,1811.9,1811.6,5.15443]
[1743834817624,0.66254,1811.8,1811.6,1.65643]
[1743834817926,2.07444,1811.8,1811.7,4.30757728]
[1743834820429,2.07444,1811.8,1811.7,4.30756236]
[1743834823530,0.66249,1811.9,1811.8,0.66251]
[1743834823731,0.66249,1811.9,1811.8,2.84466236]
[1743834824229,2.11919,1811.9,1811.8,2.84466547]
[1743834825231,2.11919,1811.9,1811.8,2.84473006]
[1743834825432,2.11919,1811.9,1811.8,0.76592006]
[1743834825634,0.66251,1811.8,1811.7,2.09661]
[1743834825933,2.11921,1811.8,1811.7,4.34284053]
[1743834827732,2.11921,1811.8,1811.7,3.57681]
[1743834827933,2.11921,1811.8,1811.7,4.34316806]
[1743834829532,2.11921,1811.8,1811.7,4.34358425]
[1743834833434,2.11921,1811.8,1811.7,4.34361425]
[1743834833639,2.11921,1811.8,1811.7,3.68107425]
[1743834834338,2.11921,1811.8,1811.7,4.34361425]
[1743834836841,2.11921,1811.8,1811.7,3.68107425]
[1743834837140,2.11921,1811.8,1811.7,0.76677425]
[1743834837340,1.4567,1811.8,1811.7,0.76733695]
[1743834837539,2.8806,1811.8,1811.7,0.76733695]
[1743834837743,3.54311,1811.8,1811.7,0.76733695]
[1743834838440,3.54311,1811.8,1811.7,1.42987695]
[1743834838741,3.54311,1811.8,1811.7,0.76733695]
[1743834839240,3.54311,1811.8,1811.7,1.42987695]
[1743834839441,3.54311,1811.8,1811.7,0.76733695]
[1743834839642,3.54311,1811.8,1811.7,1.42987695]
[1743834840236,3.54311,1811.8,1811.7,0.76733695]
[1743834840442,3.54311,1811.8,1811.7,2.22653695]
[1743834840641,3.54311,1811.8,1811.7,2.22658094]
[1743834840941,6.75091,1811.8,1811.7,0.76738094]
[1743834841138,6.75091,1811.8,1811.5,1.4604]
[1743834841139,0.66258,1811.6,1811.5,1.4604]
[1743834841344,3.87038,1811.6,1811.5,0.767431]
[1743834841843,0.66265,1811.4,1811.3,2.12188]
[1743834842038,0.66265,1811.4,1811.3,2.22617632]
[1743834842434,2.08255,1811.4,1811.3,2.22617632]
[1743834843245,2.08255,1811.4,1811.3,0.76697632]
[1743834843840,0.66269,1811.3,1811.2,3.60901]
[1743834844035,2.08259,1811.3,1811.2,4.37539538]
[1743834847448,2.08259,1811.3,1811.2,4.37480131]
[1743834849347,2.08259,1811.3,1811.2,4.37466794]
[1743834850452,2.08259,1811.3,1811.2,3.60901]
[1743834850754,2.08259,1811.3,1811.2,4.37445847]
[1743834851053,2.08259,1811.3,1811.2,3.60901]
[1743834851553,0.66272,1811.2,1811.1,3.87880834]
[1743834851745,2.18152,1811.2,1811.1,4.38565333]
[1743834851946,2.90502,1811.2,1811.1,2.95205333]
[1743834852351,2.90502,1811.2,1811.1,2.18670834]
[1743834853950,2.18152,1811.2,1811.1,2.18670834]
[1743834861455,2.18152,1811.2,1811.1,3.58470834]
[1743834861955,1.5188,1811.2,1810.6,3.2078]
[1743834862161,0.6628,1811.0,1810.9,2.77903]
[1743834863157,2.19006834,1811.1,1811.0,0.6628]
[1743834863555,2.19006834,1811.1,1811.0,2.8186]
[1743834870267,2.19006834,1811.1,1811.0,3.58497593]
[1743834870567,2.19006834,1811.1,1811.0,1.42917593]
[1743834870867,2.19006834,1811.1,1811.0,0.6628]
[1743834874675,0.6628,1811.0,1810.9,2.8508]
[1743834874869,0.6628,1811.0,1810.9,3.61737378]
[1743834875979,2.1758,1811.0,1810.9,3.61737378]
[1743834877076,2.1758,1811.0,1810.9,2.8508]
[1743834877280,2.1758,1811.0,1810.9,3.61752734]
[1743834880674,0.00826834,1811.1,1811.0,0.6628]
[1743834880881,0.67102834,1811.1,1811.0,6.80722734]
[1743834881283,0.67102834,1811.1,1811.0,3.59942734]
[1743834881889,2.11842834,1811.1,1811.0,3.59942734]
[1743834882388,3.58682834,1811.1,1811.0,3.59942734]
[1743834882587,0.6628,1811.0,1810.9,0.66283]
[1743834882788,2.1623,1811.0,1810.9,1.43011078]
[1743834883482,4.68446834,1811.1,1811.0,0.6628]
[1743834883483,0.67102834,1811.1,1811.0,0.6628]
[1743834883682,0.67102834,1811.1,1811.0,1.43008078]
[1743834883883,0.67102834,1811.1,1811.0,0.6628]
[1743834884085,2.17052834,1811.1,1811.0,0.6628]
[1743834884689,0.6628,1811.0,1810.9,2.08361]
[1743834884890,2.1623,1811.0,1810.9,2.85087992]
[1743834887285,0.6628,1811.0,1810.9,2.85087992]
[1743834888292,0.6628,1811.0,1810.9,6.05867992]
[1743834890493,0.6628,1811.0,1810.9,2.85087992]
[1743834891495,0.6628,1811.0,1810.9,2.85155938]
[1743834892089,0.6628,1811.0,1810.9,2.85155914]
[1743834892382,0.6628,1811.0,1810.9,6.05935914]
[1743834893788,2.14085834,1811.1,1811.0,0.6628]
[1743834893995,2.14085834,1811.1,1811.0,4.34991087]
[1743834895789,2.14085834,1811.1,1811.0,4.34985754]
[1743834896983,0.67105834,1811.1,1811.0,4.34985754]
[1743834899390,0.67105834,1811.1,1811.0,3.582]
[1743834899592,0.67105834,1811.1,1811.0,4.34974794]
[1743834901098,0.67105834,1811.1,1811.0,4.34974087]
[1743834902099,2.17695834,1811.1,1811.0,4.34974087]
[1743834902499,2.17695834,1811.1,1811.0,4.34972724]
[1743834904396,2.17695834,1811.1,1811.0,4.34973057]
[1743834904701,0.00826834,1811.1,1811.0,4.34973057]
[1743834909602,3.2078,1811.6,1811.5,0.66261]
[1743834909801,2.1496,1811.6,1811.5,0.66261]
[1743834919110,0.66261,1811.5,1811.4,3.51821]
[1743834919306,2.10051,1811.5,1811.4,3.51821]
[1743834919511,2.10051,1811.5,1811.4,4.2839255]
[1743834920210,2.10051,1811.5,1811.4,3.51821]
[1743834921015,2.10051,1811.5,1811.4,4.28390933]
[1743834921709,2.10051,1811.5,1811.4,3.51821]
[1743834921910,2.10051,1811.5,1811.4,4.28389251]
[1743834925809,1.4379,1811.5,1811.1,3.2078]
[1743834926017,0.66272,1811.2,1811.1,0.66274]
[1743834926215,0.66272,1811.2,1811.1,1.42853186]
[1743834926415,0.66272,1811.2,1811.1,0.66274]
[1743834926818,0.66276,1811.1,1811.0,6.72206]
[1743834927021,2.18546,1811.1,1811.0,7.4879312]
[1743834929115,2.18546,1811.1,1811.0,0.7658712]
[1743834929321,2.94986,1811.1,1811.0,1.4286712]
[1743834929522,2.94986,1811.1,1811.0,0.6628]
[1743834932627,1.5227,1811.1,1811.0,1.42863545]
[1743834932925,2.18546,1811.1,1811.0,2.84653545]
[1743834934130,2.18546,1811.1,1811.0,2.84656848]
[1743834936118,2.18546,1811.1,1811.0,2.0807]
[1743834936925,0.6628,1811.0,1810.9,2.13991]
[1743834937123,2.1928,1811.0,1810.9,2.90576422]
[1743834937529,2.1928,1811.0,1810.9,0.66281]
[1743834938438,2.9378,1811.0,1810.9,0.66281]
[1743834938743,2.9378,1811.0,1810.9,1.42847726]
[1743834939234,1.53,1811.0,1810.9,2.84657726]
[1743834940536,2.1928,1811.0,1810.9,2.84657726]
[1743834941330,1.53,1811.0,1810.9,2.84657726]
[1743834941634,1.53,1811.0,1810.9,2.84645821]
[1743834942136,2.1928,1811.0,1810.9,2.84645821]
[1743834942935,1.53,1811.0,1810.9,2.84645821]
[1743834943437,1.53,1811.0,1810.9,2.84646998]
[1743834946339,0.66276,1811.1,1811.0,0.66276]
[1743834946535,0.66276,1811.1,1811.0,3.55231998]
[1743834947047,0.66276,1811.1,1811.0,2.78676]
[1743834947340,2.05396,1811.1,1811.0,2.78676]
[1743834947839,2.05396,1811.1,1811.0,0.66276]
[1743834949242,2.05396,1811.1,1811.0,1.42862278]
[1743834950041,1.3912,1811.1,1811.0,1.42862278]
[1743834950341,3.9284,1811.3,1811.2,0.66272]
[1743834950342,3.87052,1811.3,1811.2,0.66272]
[1743834950542,1.4637,1811.3,1811.2,0.66272]
[1743834950842,1.35718,1811.4,1811.3,0.66269]
[1743834951047,1.35718,1811.4,1811.3,1.42479]
[1743834951336,2.1582,1811.4,1811.3,2.85919]
[1743834951541,2.82085,1811.4,1811.3,2.85919]
[1743834951843,2.12635,1811.4,1811.3,2.85919]
[1743834952141,1.4637,1811.4,1811.3,2.85919]
[1743834952540,2.12635,1811.4,1811.3,2.85919]
[1743834953542,2.12635,1811.4,1811.3,3.62562248]
[1743834954144,2.12635,1811.4,1811.3,2.85919]
[1743834954844,2.12635,1811.4,1811.3,3.62580783]
[1743834955045,2.12635,1811.4,1811.3,2.85919]
[1743834955348,2.12635,1811.4,1811.3,3.62580792]
[1743834956445,2.12635,1811.4,1811.3,3.62588411]
[1743834958241,2.12635,1811.4,1811.3,6.83368411]
[1743834958442,2.12635,1811.4,1811.3,6.8335704]
[1743834960239,2.12635,1811.4,1811.3,2.9630804]
[1743834960548,0.66269,1811.3,1811.2,0.6627]
[1743834960744,2.94049,1811.3,1811.2,0.6627]
[1743834961644,2.94049,1811.3,1811.2,1.42914798]
[1743834962052,2.94049,1811.3,1811.2,0.6627]
[1743834962251,2.94049,1811.3,1811.2,1.42920999]
[1743834963253,2.94049,1811.3,1811.2,1.42919781]
[1743834963454,2.94049,1811.3,1811.2,1.42917522]
[1743834963950,1.5189,1811.3,1811.2,2.92067522]
[1743834964156,2.18159,1811.3,1811.2,2.92067522]
[1743834965154,2.18159,1811.3,1811.2,2.92069246]
[1743834965553,2.18159,1811.3,1811.2,0.6627]
[1743834966349,2.87629,1811.3,1811.2,0.66272]
[1743834966852,0.66272,1811.2,1811.1,6.88314]
[1743834967054,2.11742,1811.2,1811.1,7.64968714]
[1743834967254,2.11742,1811.2,1811.1,2.19288714]
[1743834967451,2.81412,1811.2,1811.1,2.19288714]
[1743834968258,2.81412,1811.2,1811.1,2.19298644]
[1743834969162,2.81412,1811.2,1811.1,1.42938644]
[1743834969761,2.81412,1811.2,1811.1,1.42940644]
[1743834970262,2.81412,1811.2,1811.1,0.76664644]
[1743834970559,2.81412,1811.2,1811.1,1.42940644]
[1743834970762,2.81412,1811.2,1811.1,1.42957664]
[1743834971255,2.81412,1811.2,1811.1,0.76681664]
[1743834971555,0.66276,1811.1,1811.0,0.66277]
[1743834971749,2.17076,1811.1,1811.0,1.42960121]
[1743834972555,2.17076,1811.1,1811.0,1.4296325]
[1743834973653,4.67076,1811.1,1811.0,0.7668625]
[1743834973850,0.66283,1810.9,1810.8,0.00826834]
[1743834974048,7.34863,1810.9,1810.8,0.00826834]
[1743834974558,8.84523,1810.9,1810.8,0.00826834]
[1743834974759,0.66294,1810.6,1810.5,2.1563]
[1743834975655,2.15954,1810.6,1810.5,2.81928]
[1743834976260,2.15954,1810.6,1810.5,2.1563]
[1743834979364,2.88014,1810.6,1810.5,2.1563]
[1743834979963,2.88014,1810.6,1810.5,0.7025]
[1743834980461,0.66298,1810.5,1810.4,0.67126834]
[1743834980664,2.12468,1810.5,1810.4,0.67126834]
[1743834981163,2.12468,1810.5,1810.4,2.08686834]
[1743834985765,2.12468,1810.5,1810.4,1.42386834]
[1743834986256,2.12468,1810.5,1810.4,0.00826834]
[1743834996976,5.60268,1810.5,1810.4,0.00826834]
[1743835002987,0.66316,1810.0,1809.9,6.79737]
[1743835003180,0.66316,1810.0,1809.9,6.04161115]
[1743835003685,0.66315,1810.1,1810.0,0.66313]
[1743835003884,0.64262477,1810.1,1810.0,1.42349638]